Workbook

Sheet Sheet1
A1: 附件：
A2: 贵阳市文化和旅游局所属事业单位2019年公开招聘笔试、专业测试、面试、总成绩及进入体检名单
A3: 序号 | B3: 姓名 | C3: 准考证号 | D3: 报考单位及代码 | E3: 报考岗位及代码 | F3: 笔试成绩 | G3: 百分制折算后笔试成绩 | H3: 笔试成绩乘以0.3（管理人员乘以0.6） | I3: 专业测试成绩（百分制） | J3: 专业测试成绩乘以0.4 | K3: 面试成绩（百分制） | L3: 面试成绩 乘以0.3（管理人员乘以0.4） | M3: 总成绩 | N3: 总成绩排名 | O3: 是否进入体检 | P3: 备注
A4: 1 | B4: 张清一 | C4: 1152019905802 | D4: 035市图书馆 | E4: 01专业技术岗位 | F4: 191.00 | G4: =F4/3 -> 63.67 | H4: =G4*0.3 -> 19.10 | I4: 71.00 | J4: =I4*0.4 -> 28.40 | K4: 86.20 | L4: =K4*0.3 -> 25.86 | M4: =H4+J4+L4 -> 73.36 | N4: 1 | O4: 是
A5: 2 | B5: 刘雨诗 | C5: 1152016201408 | D5: 035市图书馆 | E5: 01专业技术岗位 | F5: 183.50 | G5: 61.17 | H5: 18.35 | I5: 68.00 | J5: 27.20 | K5: 86.20 | L5: 25.86 | M5: 71.41 | N5: 2 | O5: 是
A6: 3 | B6: 徐欢 | C6: 1152018204421 | D6: 035市图书馆 | E6: 01专业技术岗位 | F6: 211.00 | G6: 70.33 | H6: 21.10 | I6: 61.00 | J6: 24.40 | K6: 82.20 | L6: 24.66 | M6: 70.16 | N6: 3
A7: 4 | B7: 张宇琴 | C7: 1152016103816 | D7: 035市图书馆 | E7: 01专业技术岗位 | F7: 181.00 | G7: 60.33 | H7: 18.10 | I7: 67.00 | J7: 26.80 | K7: 81.40 | L7: 24.42 | M7: 69.32 | N7: 4
A8: 5 | B8: 黄娅 | C8: 1152018204322 | D8: 035市图书馆 | E8: 01专业技术岗位 | F8: 183.50 | G8: 61.17 | H8: 18.35 | I8: 67.00 | J8: 26.80 | K8: 80.40 | L8: 24.12 | M8: 69.27 | N8: 5
A9: 6 | B9: 郑冲 | C9: 1152018200627 | D9: 035市图书馆 | E9: 01专业技术岗位 | F9: 189.50 | G9: 63.17 | H9: 18.95 | I9: 64.00 | J9: 25.60 | K9: 79.80 | L9: 23.94 | M9: 68.49 | N9: 6
A10: 7 | B10: 张宇欣 | C10: 1152018600121 | D10: 035市图书馆 | E10: 02专业技术岗位 | F10: 173.50 | G10: 57.83 | H10: 17.35 | I10: 69.00 | J10: 27.60 | K10: 80.20 | L10: 24.06 | M10: 69.01 | N10: 1 | O10: 是
A11: 8 | B11: 王玲莉 | C11: 1152018601724 | D11: 035市图书馆 | E11: 02专业技术岗位 | F11: 156.50 | G11: 52.17 | H11: 15.65 | I11: 65.00 | J11: 26.00 | K11: 80.00 | L11: 24.00 | M11: 65.65 | N11: 2
A12: 9 | B12: 雷丹 | C12: 1152019000706 | D12: 035市图书馆 | E12: 02专业技术岗位 | F12: 172.00 | G12: 57.33 | H12: 17.20 | I12: 61.00 | J12: 24.40 | K12: 76.80 | L12: 23.04 | M12: 64.64 | N12: 3
A13: 10 | B13: 周钟 | C13: 1152012701026 | D13: 035市图书馆 | E13: 03专业技术岗位 | F13: 190.00 | G13: 63.33 | H13: 19.00 | I13: 72.00 | J13: 28.80 | K13: 83.40 | L13: 25.02 | M13: 72.82 | N13: 1 | O13: 是
A14: 11 | B14: 李淳一 | C14: 1152019202819 | D14: 035市图书馆 | E14: 03专业技术岗位 | F14: 216.00 | G14: 72.00 | H14: 21.60 | I14: 64.00 | J14: 25.60 | K14: 83.00 | L14: 24.90 | M14: 72.10 | N14: 2
A15: 12 | B15: 喻言 | C15: 1152018602427 | D15: 035市图书馆 | E15: 03专业技术岗位 | F15: 211.00 | G15: 70.33 | H15: 21.10 | I15: 65.00 | J15: 26.00 | K15: 83.20 | L15: 24.96 | M15: 72.06 | N15: 3
A16: 13 | B16: 李小奉 | C16: 1152019905324 | D16: 036市文化广播电影电视局创作研究室 | E16: 01管理岗位 | F16: 195.50 | G16: 65.17 | H16: =G16*0.6 -> 39.10 | K16: 80.00 | L16: =K16*0.4 -> 32.00 | M16: =H16+L16 -> 71.10 | N16: 1 | O16: 是
A17: 14 | B17: 王亚军 | C17: 1152016100801 | D17: 036市文化广播电影电视局创作研究室 | E17: 01管理岗位 | F17: 183.50 | G17: 61.17 | H17: =G17*0.6 -> 36.70 | K17: 85.80 | L17: =K17*0.4 -> 34.32 | M17: =H17+L17 -> 71.02 | N17: 2
A18: 15 | B18: 苏娜 | C18: 1152019906827 | D18: 036市文化广播电影电视局创作研究室 | E18: 01管理岗位 | F18: 179.50 | G18: 59.83 | H18: =G18*0.6 -> 35.90 | K18: 76.20 | L18: =K18*0.4 -> 30.48 | M18: =H18+L18 -> 66.38 | N18: 3
A19: 16 | B19: 石玮 | C19: 1152019003514 | D19: 037市群众艺术馆 | E19: 01专业技术岗位 | F19: 160.50 | G19: 53.50 | H19: =G19*0.3 -> 16.05 | I19: 75.50 | J19: =I19*0.4 -> 30.20 | K19: 90.40 | L19: =K19*0.3 -> 27.12 | M19: =H19+J19+L19 -> 73.37 | N19: 1 | O19: 是
A20: 17 | B20: 吴润霞 | C20: 1152019502511 | D20: 037市群众艺术馆 | E20: 01专业技术岗位 | F20: 164.00 | G20: 54.67 | H20: =G20*0.3 -> 16.40 | I20: 81.50 | J20: =I20*0.4 -> 32.60 | K20: 76.40 | L20: =K20*0.3 -> 22.92 | M20: =H20+J20+L20 -> 71.92 | N20: 2
A21: 18 | B21: 胡娟 | C21: 1152016201203 | D21: 037市群众艺术馆 | E21: 01专业技术岗位 | F21: 161.50 | G21: 53.83 | H21: =G21*0.3 -> 16.15 | I21: 78.50 | J21: =I21*0.4 -> 31.40 | K21: 76.60 | L21: =K21*0.3 -> 22.98 | M21: =H21+J21+L21 -> 70.53 | N21: 3

Sheet Sheet2
